bitfinex-derivatives/quotes_BTCF0:USTF0_20250527
["timestamp","ask_amount","ask_price","bid_price","bid_amount"]
[1748352438011,0.1810213,110430.0,110420.0,0.00013567]
[1748352438215,1.55458424,110430.0,110420.0,7e-08]
[1748352438413,1.64514424,110430.0,110420.0,7e-08]
[1748352439412,1.64614424,110430.0,110420.0,0.00500007]
[1748352440413,1.2024813,110430.0,110420.0,0.00500007]
[1748352440611,1.1119213,110430.0,110420.0,0.205]
[1748352440814,1.6277613,110430.0,110420.0,0.3074]
[1748352441109,1.1130413,110430.0,110420.0,0.5901377]
[1748352441315,1.6286013,110430.0,110420.0,0.5901377]
[1748352441512,1.4087213,110430.0,110420.0,0.5901377]
[1748352441711,1.4086813,110430.0,110420.0,0.5901377]
[1748352441922,1.4086413,110430.0,110420.0,0.5901377]
[1748352442812,1.2586413,110430.0,110420.0,0.5901377]
[1748352443117,1.2585613,110430.0,110420.0,0.5901377]
[1748352443316,0.6464413,110430.0,110420.0,0.5901377]
[1748352443524,1.1619213,110430.0,110420.0,0.5901377]
[1748352443916,1.1618413,110430.0,110420.0,0.5901377]
[1748352444111,1.1618413,110430.0,110420.0,0.4091]
[1748352444411,1.2636413,110430.0,110420.0,0.5901377]
[1748352444611,1.4736413,110430.0,110420.0,0.5901377]
[1748352444812,1.2636413,110430.0,110420.0,0.5901377]
[1748352445012,0.7482413,110430.0,110420.0,0.5901377]
[1748352445321,0.46542,110430.0,110420.0,0.5901377]
[1748352445506,0.8782,110430.0,110420.0,0.5901377]
[1748352445713,1.0591012,110430.0,110420.0,0.5901377]
[1748352446118,1.0592212,110430.0,110420.0,0.5901377]
[1748352446319,1.2677212,110430.0,110420.0,0.5901377]
[1748352447122,1.5977212,110430.0,110420.0,0.4091]
[1748352447318,1.5977212,110430.0,110420.0,0.5901377]
[1748352447923,1.2677212,110430.0,110420.0,0.5901377]
[1748352448523,0.36292,110430.0,110420.0,0.5901377]
[1748352448721,1.0587413,110430.0,110420.0,0.5901377]
[1748352448914,1.0588613,110430.0,110420.0,0.5901377]
[1748352449521,1.0588613,110430.0,110420.0,0.6014574]
[1748352449721,0.5439413,110430.0,110420.0,0.6014574]
[1748352449920,1.1646413,110430.0,110420.0,0.6014574]
[1748352450222,1.0587013,110430.0,110420.0,0.6014574]
[1748352450622,0.87768,110430.0,110420.0,0.6014574]
[1748352450823,0.00212,110430.0,110420.0,0.6014574]
[1748352451023,0.00212,110430.0,110420.0,1.0528174]
[1748352451215,0.002,110430.0,110420.0,1.05932975]
[1748352451415,0.1831413,110430.0,110420.0,0.69852975]
[1748352451811,0.5439413,110430.0,110420.0,0.60634001]
[1748352452830,1.0584213,110430.0,110420.0,0.60634001]
[1748352453914,0.00212,110430.0,110420.0,0.96714001]
[1748352454118,0.00212,110430.0,110420.0,1.06421236]
[1748352454424,0.1830213,110430.0,110420.0,1.06421236]
[1748352454628,0.1830213,110430.0,110420.0,0.97365236]
[1748352454629,0.002,110430.0,110420.0,0.97365236]
[1748352454824,0.1830213,110430.0,110420.0,0.97364467]
[1748352455327,0.00212,110430.0,110420.0,0.97364467]
[1748352455827,0.00212,110430.0,110420.0,0.96876975]
[1748352456331,0.002,110430.0,110420.0,0.97364609]
[1748352456727,0.002,110430.0,110420.0,0.98730363]
[1748352457128,0.00212,110430.0,110420.0,0.98730363]
[1748352457322,0.00212,110430.0,110420.0,0.97364609]
[1748352457528,0.00212,110430.0,110420.0,0.96876975]
[1748352458933,0.00212,110430.0,110420.0,0.96876782]
[1748352460136,0.00212,110430.0,110420.0,0.60796782]
[1748352460434,0.1831413,110430.0,110420.0,0.65197362]
[1748352460731,0.5439413,110430.0,110420.0,0.6503419]
[1748352461220,1.0195413,110430.0,110420.0,0.41563475]
[1748352461423,1.4803413,110430.0,110420.0,0.36028643]
[1748352461620,1.2503413,110430.0,110420.0,0.36028643]
[1748352461819,1.2503413,110430.0,110420.0,0.25788643]
[1748352462024,1.5509013,110430.0,110420.0,0.2530058]
[1748352462737,1.5509013,110430.0,110420.0,0.07240321]
[1748352462932,1.5509013,110430.0,110420.0,0.02839741]
[1748352463626,1.8009013,110430.0,110420.0,0.02839741]
[1748352463825,1.8009013,110430.0,110420.0,0.01000001]
[1748352464030,1.99456424,110430.0,110420.0,1e-08]
[1748352464236,1.99456424,110430.0,110420.0,9e-08]
[1748352464632,1.99456424,110430.0,110420.0,0.01000009]
[1748352465026,1.99456424,110430.0,110420.0,9e-08]
[1748352465222,0.1810377,110420.0,110410.0,0.00013567]
[1748352465432,1.80672064,110420.0,110410.0,0.01013567]
[1748352465638,1.91712064,110420.0,110410.0,0.01013567]
[1748352466336,2.25768865,110420.0,110410.0,7e-08]
[1748352466533,2.06502571,110420.0,110410.0,7e-08]
[1748352466734,0.37473344,110400.0,110390.0,0.00135869]
[1748352466932,0.37473344,110400.0,110390.0,0.05135869]
[1748352466933,2.11293344,110400.0,110390.0,0.05135869]
[1748352467129,2.54181744,110400.0,110390.0,0.05135869]
[1748352467525,2.79181744,110400.0,110390.0,0.00117059]
[1748352467828,0.1810869,110390.0,110380.0,6e-08]
[1748352468026,1.0249869,110390.0,110380.0,0.05000006]
[1748352468232,1.23479463,110390.0,110380.0,0.05000006]
[1748352469036,0.1811033,110380.0,110370.0,3e-08]
[1748352469248,0.1811525,110350.0,110340.0,0.02414049]
[1748352469537,0.181169,110340.0,110330.0,0.11468588]
[1748352469733,0.967169,110340.0,110330.0,0.41468588]
[1748352469933,0.967169,110340.0,110330.0,0.42270759]
[1748352470140,0.967169,110340.0,110330.0,0.42279658]
[1748352470329,1.321569,110340.0,110330.0,0.42258031]
[1748352470532,0.181169,110340.0,110330.0,0.617387]
[1748352470831,0.181289,110340.0,110330.0,0.81119642]
[1748352471027,1.054729,110340.0,110330.0,0.81119642]
[1748352471234,0.545089,110340.0,110330.0,0.76590222]
[1748352471426,0.545089,110340.0,110330.0,0.7660124]
[1748352471427,1.057689,110340.0,110330.0,0.7660124]
[1748352471625,1.057689,110340.0,110330.0,0.7532723]
[1748352471626,1.057649,110340.0,110330.0,0.7532723]
[1748352471827,0.36592,110340.0,110330.0,0.7542723]
[1748352472032,1.0596089,110340.0,110330.0,0.94793524]
[1748352472232,1.0594889,110340.0,110330.0,0.94793524]
[1748352472430,1.0596089,110340.0,110330.0,0.72146294]
[1748352472634,1.0596089,110340.0,110330.0,0.5278]
[1748352472829,1.1767089,110340.0,110330.0,0.7089854]
[1748352473138,1.2924089,110340.0,110330.0,0.72174054]
[1748352473442,1.2924089,110340.0,110330.0,0.7089854]
[1748352473740,0.5470889,110340.0,110330.0,0.72173973]
[1748352473940,1.0594889,110340.0,110330.0,0.73449235]
[1748352474140,1.0594889,110340.0,110330.0,0.74722047]
[1748352474329,1.0594889,110340.0,110330.0,0.73449235]
[1748352474533,1.0594889,110340.0,110330.0,0.74722065]
[1748352474833,1.0594889,110340.0,110330.0,0.73449235]
[1748352475028,1.0594889,110340.0,110330.0,0.75994194]
[1748352475542,1.1765889,110340.0,110330.0,0.75994194]
[1748352476433,1.1765889,110340.0,110330.0,0.57875654]
[1748352476926,1.2902889,110340.0,110330.0,0.47448229]
[1748352477131,1.4087889,110340.0,110330.0,0.46175654]
[1748352478038,1.4087889,110340.0,110330.0,0.46075654]
[1748352478433,1.4087889,110340.0,110330.0,0.47353038]
[1748352478638,1.4087889,110340.0,110330.0,0.46075654]
[1748352479038,1.4087889,110340.0,110330.0,0.47352257]
[1748352479227,1.4087889,110340.0,110330.0,0.65468156]
[1748352479431,1.4083089,110340.0,110330.0,0.75244194]
[1748352479638,0.9949,110340.0,110330.0,0.76512612]
[1748352479828,1.1759489,110340.0,110330.0,0.75244194]
[1748352480031,1.1760689,110340.0,110330.0,0.75244194]
[1748352480238,1.2909489,110340.0,110330.0,0.5839155]
[1748352480434,1.2910689,110340.0,110330.0,0.46075654]
[1748352480735,1.91933184,110340.0,110330.0,0.35095654]
[1748352481346,1.4056689,110340.0,110330.0,0.35095654]
[1748352481537,1.5156689,110340.0,110330.0,0.35095654]
[1748352481841,1.5256689,110340.0,110330.0,0.35095654]
[1748352482144,1.7256689,110340.0,110330.0,0.35095654]
[1748352482643,1.4056689,110340.0,110330.0,0.35095654]
[1748352482844,1.4656689,110340.0,110330.0,0.35095654]
[1748352483038,0.8937889,110340.0,110330.0,0.46635654]
[1748352483236,1.4253489,110340.0,110330.0,0.35095654]
[1748352483741,1.4252289,110340.0,110330.0,0.64754194]
[1748352483937,1.5770289,110340.0,110330.0,0.46635654]
[1748352484150,1.5569889,110340.0,110330.0,0.64754194]
[1748352484333,1.5568689,110340.0,110330.0,0.57835654]
[1748352484531,1.5569489,110340.0,110330.0,0.75954194]
[1748352484736,1.5568289,110340.0,110330.0,0.57835654]
[1748352484930,1.5569489,110340.0,110330.0,0.57835654]
[1748352485134,1.5569089,110340.0,110330.0,0.5912345]
[1748352485446,1.5569089,110340.0,110330.0,0.59131221]
[1748352485744,1.5569089,110340.0,110330.0,0.57835654]
[1748352485943,0.00512,110340.0,110330.0,0.77251421]
[1748352486141,0.00512,110340.0,110330.0,0.96617715]
[1748352486348,0.6974089,110340.0,110330.0,0.96617715]
[1748352486545,0.6974089,110340.0,110330.0,0.95320488]
[1748352486736,0.51624,110340.0,110330.0,0.75954194]
[1748352486937,1.0583289,110340.0,110330.0,0.77217111]
[1748352487236,1.0583289,110340.0,110330.0,0.47898571]
[1748352487439,1.2936289,110340.0,110330.0,0.66017111]
[1748352487641,1.2936289,110340.0,110330.0,0.47898571]
[1748352487942,1.0581689,110340.0,110330.0,0.77175741]
[1748352488147,0.36592,110340.0,110330.0,0.96542035]
[1748352488442,0.36592,110340.0,110330.0,0.78288406]
[1748352488443,1.058009,110340.0,110330.0,0.78288406]
[1748352488647,1.058009,110340.0,110330.0,0.78289579]
[1748352489037,1.058009,110340.0,110330.0,0.77156725]
[1748352489038,1.057009,110340.0,110330.0,0.77156725]
[1748352489343,1.057129,110340.0,110330.0,0.77017071]
[1748352490239,0.695329,110340.0,110330.0,0.78292603]
[1748352490443,0.695329,110340.0,110330.0,0.79562688]
[1748352490649,1.056129,110340.0,110330.0,0.78290219]
[1748352490850,0.695329,110340.0,110330.0,0.79563199]
[1748352491049,1.056129,110340.0,110330.0,0.78290219]
[1748352491250,1.056129,110340.0,110330.0,0.7956888]
[1748352491544,1.056129,110340.0,110330.0,0.78777239]
[1748352491545,1.166429,110340.0,110330.0,0.78777239]
[1748352491747,1.166429,110340.0,110330.0,0.7957504]
[1748352491945,1.166429,110340.0,110330.0,0.78290219]
[1748352492146,0.545089,110340.0,110330.0,0.78290219]
[1748352492345,0.545089,110340.0,110330.0,0.78777239]
[1748352492346,1.055689,110340.0,110330.0,0.78777239]
[1748352492741,0.545089,110340.0,110330.0,0.80059075]
[1748352492943,1.055649,110340.0,110330.0,0.81340599]
[1748352493948,1.055529,110340.0,110330.0,0.82628254]
[1748352494148,1.055529,110340.0,110330.0,0.82138234]
[1748352494643,0.00312,110340.0,110330.0,1.17085389]
[1748352494845,0.00312,110340.0,110330.0,1.46800358]
[1748352495149,0.69159487,110350.0,110340.0,0.1811556]
[1748352495451,0.69166917,110350.0,110340.0,0.70671526]
[1748352495640,0.51053567,110350.0,110340.0,0.70671526]
[1748352495836,0.51053567,110350.0,110340.0,0.71644897]
[1748352496038,0.51053567,110350.0,110340.0,0.71647313]
[1748352496247,0.51053567,110350.0,110340.0,0.73223148]
[1748352496448,0.69266807,110350.0,110340.0,1.09301596]
[1748352496654,0.69350807,110350.0,110340.0,1.27609851]
[1748352496842,0.69350807,110350.0,110340.0,1.28865765]
[1748352497043,0.69350807,110350.0,110340.0,1.27609851]
[1748352497452,0.00225567,110350.0,110340.0,1.27609851]
[1748352497655,0.51225567,110350.0,110340.0,1.27609851]
[1748352497856,0.51225567,110350.0,110340.0,1.28865086]
[1748352498064,0.69338817,110350.0,110340.0,1.27609648]
[1748352498356,0.69338817,110350.0,110340.0,1.38449648]
[1748352498554,0.69338817,110350.0,110340.0,1.39704598]
[1748352498755,0.69338817,110350.0,110340.0,1.19083354]
[1748352499055,0.37586326,110390.0,110380.0,0.1810833]
[1748352499256,0.00136034,110390.0,110380.0,0.8781105]
[1748352499442,0.51116034,110390.0,110380.0,1.2190105]
[1748352499753,0.69222734,110390.0,110380.0,0.8582105]
[1748352499959,1.52094734,110390.0,110380.0,0.67222645]
[1748352500270,1.52094734,110390.0,110380.0,0.45495451]
[1748352500271,1.32424734,110390.0,110380.0,0.45495451]
[1748352500462,1.65424734,110390.0,110380.0,0.45495451]
[1748352500661,1.65524734,110390.0,110380.0,0.34475451]
[1748352500952,1.65524734,110390.0,110380.0,0.20475451]
[1748352501164,1.65524734,110390.0,110380.0,0.19985999]
[1748352501546,1.14544734,110390.0,110380.0,0.19985999]
[1748352501746,1.47896734,110390.0,110380.0,0.38194349]
[1748352501948,1.47896734,110390.0,110380.0,0.49414349]
[1748352502357,1.47884734,110390.0,110380.0,0.48760995]
[1748352502559,1.47884734,110390.0,110380.0,0.48860995]
[1748352502560,1.30596734,110390.0,110380.0,0.48860995]
[1748352502752,1.30596734,110390.0,110380.0,0.60760995]
[1748352502945,0.50208034,110390.0,110380.0,0.60760775]
[1748352503458,0.99140034,110390.0,110380.0,0.60760775]
[1748352503763,1.17246754,110390.0,110380.0,0.61903402]
[1748352503961,1.17246754,110390.0,110380.0,0.61250048]
[1748352503962,0.99140034,110390.0,110380.0,0.61250048]
[1748352504156,1.17246754,110390.0,110380.0,0.73613402]
[1748352504353,0.99140034,110390.0,110380.0,0.73613402]
[1748352504563,1.17246754,110390.0,110380.0,0.73613402]
[1748352504861,0.12128034,110390.0,110380.0,0.72960048]
[1748352505057,0.63044034,110390.0,110380.0,0.72960048]
[1748352505263,0.81138754,110390.0,110380.0,0.72960048]
[1748352505459,1.17230754,110390.0,110380.0,0.72960048]
[1748352505664,1.17230754,110390.0,110380.0,0.72960058]
[1748352505964,1.28430754,110390.0,110380.0,0.72960058]
[1748352506560,1.28430754,110390.0,110380.0,0.72470785]
[1748352506960,0.92350754,110390.0,110380.0,0.72470785]
[1748352507161,0.92350754,110390.0,110380.0,0.72960058]
[1748352507350,0.92350754,110390.0,110380.0,0.71826696]
[1748352507551,0.92350754,110390.0,110380.0,0.72959023]
[1748352507859,1.28430754,110390.0,110380.0,0.72959023]
[1748352508058,1.28430754,110390.0,110380.0,0.54850663]
[1748352508261,1.28430754,110390.0,110380.0,0.72958983]
[1748352508460,1.28430754,110390.0,110380.0,0.72470647]
[1748352509965,1.28430754,110390.0,110380.0,0.72958983]
[1748352510356,0.41434754,110390.0,110380.0,0.72958983]
[1748352510558,0.92282754,110390.0,110380.0,0.72470647]
[1748352510756,0.92278754,110390.0,110380.0,0.72958983]
[1748352511060,1.28358754,110390.0,110380.0,0.72470647]
[1748352511968,1.17158754,110390.0,110380.0,0.72470667]
[1748352512168,1.17142754,110390.0,110380.0,0.72470667]
[1748352512770,0.81062754,110390.0,110380.0,0.72470667]
[1748352512956,1.17142754,110390.0,110380.0,0.72470667]
[1748352513463,0.81062754,110390.0,110380.0,0.72470667]
[1748352513967,0.81062754,110390.0,110380.0,0.80470667]
[1748352514169,0.92532754,110390.0,110380.0,0.72470667]
[1748352514466,0.92532754,110390.0,110380.0,0.72958287]
[1748352514666,0.12128034,110390.0,110380.0,0.72958287]
[1748352514867,0.69250714,110390.0,110380.0,1.28404581]
[1748352515164,0.69250714,110390.0,110380.0,1.46404581]
[1748352515357,0.69234714,110390.0,110380.0,1.46404581]
[1748352515558,0.51140034,110390.0,110380.0,1.10324581]
[1748352515757,0.69242714,110390.0,110380.0,1.46404581]
[1748352515967,0.69238714,110390.0,110380.0,1.27038287]
[1748352516166,0.69238714,110390.0,110380.0,1.46404581]
[1748352516369,0.80958714,110390.0,110380.0,1.47536994]
[1748352517172,0.80958714,110390.0,110380.0,1.281707]
[1748352517370,0.80958714,110390.0,110380.0,0.920907]
[1748352517570,0.80958714,110390.0,110380.0,0.90958353]
[1748352517769,0.80958714,110390.0,110380.0,0.72958353]
[1748352518271,0.95958714,110390.0,110380.0,0.72958353]
[1748352518471,1.07808714,110390.0,110380.0,0.72958353]
[1748352518664,0.93104714,110390.0,110380.0,0.72958353]
[1748352518866,1.62856714,110390.0,110380.0,0.3075227]
[1748352520066,1.62856714,110390.0,110380.0,0.4772832]
[1748352520573,1.62836714,110390.0,110380.0,0.4772832]
[1748352520769,0.21056034,110390.0,110380.0,1.04307069]
[1748352520964,0.51076034,110390.0,110380.0,1.10137069]
[1748352521361,0.69170714,110390.0,110380.0,1.10625438]
[1748352521561,0.51064034,110390.0,110380.0,1.10625438]
[1748352521756,0.51064034,110390.0,110380.0,0.91259144]
[1748352521974,0.62266034,110390.0,110380.0,0.91259144]
[1748352522272,0.11538034,110390.0,110380.0,0.91259144]
[1748352522472,0.80356694,110390.0,110380.0,0.91259144]
[1748352522779,0.11538034,110390.0,110380.0,0.91259144]
[1748352522965,0.62246034,110390.0,110380.0,0.91259144]
[1748352523372,0.80352694,110390.0,110380.0,0.91259144]
[1748352524472,0.69142694,110390.0,110380.0,0.91423936]
[1748352524664,0.69142694,110390.0,110380.0,0.9240475]
[1748352525568,0.69142694,110390.0,110380.0,0.91751396]
[1748352525772,0.69142694,110390.0,110380.0,0.72751396]
[1748352526269,0.87699437,110400.0,110390.0,0.1810666]
[1748352526270,0.00013567,110400.0,110390.0,0.1810666]
[1748352526461,7e-08,110400.0,110390.0,1.42453216]
[1748352526659,0.1158,110430.0,110420.0,0.1810174]
[1748352526860,0.6224,110430.0,110420.0,0.4810174]
[1748352527072,0.803521,110430.0,110420.0,0.8188174]
[1748352527268,0.803401,110430.0,110420.0,0.83014002]
[1748352527464,0.803481,110430.0,110420.0,0.83014002]
[1748352527672,1.277881,110430.0,110420.0,0.82914002]
[1748352527973,1.277881,110430.0,110420.0,0.83566037]
[1748352528162,0.918081,110430.0,110420.0,0.83566037]
[1748352528358,1.278881,110430.0,110420.0,0.43014297]
[1748352528565,1.425981,110430.0,110420.0,0.42370947]
[1748352528772,1.395981,110430.0,110420.0,0.42207773]
[1748352529068,1.395981,110430.0,110420.0,0.30977773]
[1748352529069,1.735981,110430.0,110420.0,0.30977773]
[1748352529274,1.735981,110430.0,110420.0,0.31620783]
[1748352529570,1.735981,110430.0,110420.0,0.30488861]
[1748352530665,1.735981,110430.0,110420.0,0.42610938]
[1748352530866,1.735981,110430.0,110420.0,0.60712668]
[1748352531066,1.735981,110430.0,110420.0,0.42610938]
[1748352531263,1.735981,110430.0,110420.0,0.60712668]
[1748352531467,1.735461,110430.0,110420.0,0.42610938]
[1748352531866,1.3746209,110430.0,110420.0,0.60712668]
[1748352532172,1.19362,110430.0,110420.0,0.56341135]
[1748352532372,1.19362,110430.0,110420.0,0.6120158]
[1748352532373,1.3953009,110430.0,110420.0,0.6120158]
[1748352532673,1.2194209,110430.0,110420.0,0.60712668]
[1748352532875,1.7253009,110430.0,110420.0,0.60712668]
[1748352533171,1.7252609,110430.0,110420.0,0.60712589]
[1748352534568,1.4252609,110430.0,110420.0,0.60712589]
[1748352534970,0.9194209,110430.0,110420.0,0.60712589]
[1748352535170,1.4250209,110430.0,110420.0,0.60712589]
[1748352535367,1.4250209,110430.0,110420.0,0.28087689]
[1748352535669,1.7450209,110430.0,110420.0,0.28087689]
[1748352536168,1.7450209,110430.0,110420.0,0.26955691]
[1748352536762,1.7450209,110430.0,110420.0,0.28087713]
[1748352537763,1.7450209,110430.0,110420.0,0.26955691]
[1748352539672,2.42692384,110430.0,110420.0,0.26955691]
[1748352539880,2.42692384,110430.0,110420.0,0.28087736]
[1748352540371,2.42692384,110430.0,110420.0,0.26955691]
[1748352540767,0.1810177,110420.0,110410.0,0.00013567]
[1748352540963,1.30578064,110420.0,110410.0,0.25013567]
[1748352542274,1.30578064,110420.0,110410.0,0.25113567]
[1748352542966,1.30578064,110420.0,110410.0,0.43316977]
[1748352542967,1.1121177,110420.0,110410.0,0.43316977]
[1748352543167,0.5703,110420.0,110410.0,0.54426977]
[1748352543374,0.9359977,110420.0,110410.0,0.65986977]
[1748352543675,0.8250777,110420.0,110410.0,0.67019061]
[1748352543977,0.8290777,110420.0,110410.0,0.67119061]
[1748352544180,0.9423777,110420.0,110410.0,0.67119061]
[1748352544378,0.4077377,110420.0,110410.0,0.67119061]
[1748352544580,0.9102577,110420.0,110410.0,0.67019061]
[1748352544983,0.9142577,110420.0,110410.0,0.67019061]
[1748352545294,0.4097377,110420.0,110410.0,0.67019061]
[1748352545597,0.7998777,110420.0,110410.0,0.67019061]
[1748352546381,0.2954377,110420.0,110410.0,0.67019061]
[1748352546577,0.6904577,110420.0,110410.0,1.03750208]
[1748352546785,0.1860177,110420.0,110410.0,1.03750208]
[1748352546977,0.6902977,110420.0,110410.0,0.67670208]
[1748352547283,0.6904177,110420.0,110410.0,0.67670208]
[1748352548785,0.6901777,110420.0,110410.0,1.03750208]
[1748352548981,0.1861377,110420.0,110410.0,1.23116502]
[1748352549278,0.6900177,110420.0,110410.0,1.23116502]
[1748352549485,0.6901377,110420.0,110410.0,1.23116502]
[1748352550083,0.6901377,110420.0,110410.0,0.87036502]
[1748352550578,0.6901377,110420.0,110410.0,0.88168438]
[1748352550880,0.6898977,110420.0,110410.0,0.68802144]
[1748352551080,0.6898977,110420.0,110410.0,0.89145449]
[1748352551486,0.6898977,110420.0,110410.0,0.88013365]
[1748352551983,0.1861377,110420.0,110410.0,0.88013365]
[1748352552186,0.00013567,110440.0,110430.0,0.1810018]
[1748352552481,0.50373567,110440.0,110430.0,1.0165841]
[1748352552685,0.68472107,110440.0,110430.0,1.3773841]
[1748352552987,0.68472107,110440.0,110430.0,1.38716666]
[1748352552988,0.00025567,110440.0,110430.0,1.38716666]
[1748352553180,0.50373567,110440.0,110430.0,1.38716666]
[1748352553381,0.50361567,110440.0,110430.0,1.38716666]
[1748352553686,0.50373567,110440.0,110430.0,1.38716666]
[1748352553884,0.50361567,110440.0,110430.0,1.38716666]
[1748352554077,0.50373567,110440.0,110430.0,1.39368617]
[1748352554484,0.86204107,110440.0,110430.0,0.31762143]
[1748352554780,1.70546107,110440.0,110430.0,0.47752121]
[1748352555082,1.70846107,110440.0,110430.0,0.29]
[1748352555782,1.70646107,110440.0,110430.0,0.29]
[1748352555989,1.70646107,110440.0,110430.0,0.291]
[1748352556188,1.70646107,110440.0,110430.0,0.5919018]
[1748352556390,1.70646107,110440.0,110430.0,0.60322062]
[1748352556577,1.70626107,110440.0,110430.0,0.60322062]
[1748352556781,1.52626107,110440.0,110430.0,0.60322062]
[1748352558489,1.52626107,110440.0,110430.0,0.71622062]
[1748352558692,1.52626107,110440.0,110430.0,0.71622071]
[1748352559593,1.52590107,110440.0,110430.0,0.71622071]
[1748352559788,1.52578107,110440.0,110430.0,0.71622071]
[1748352559983,1.52590107,110440.0,110430.0,0.71622071]
[1748352560183,1.41322107,110440.0,110430.0,0.71622071]
[1748352560390,1.41322107,110440.0,110430.0,0.82882071]
[1748352560895,1.41310107,110440.0,110430.0,0.82882071]
[1748352561085,1.41322107,110440.0,110430.0,0.82882071]
[1748352561391,0.91054107,110440.0,110430.0,0.82882071]
[1748352561590,1.41310107,110440.0,110430.0,0.82882071]
[1748352561994,0.36875567,110440.0,110430.0,0.82882071]
[1748352562198,1.05222107,110440.0,110430.0,0.82882071]
[1748352562398,1.41302107,110440.0,110430.0,0.82882071]
[1748352563797,1.41302107,110440.0,110430.0,0.64781891]
[1748352564000,1.41302107,110440.0,110430.0,0.82882071]
[1748352564001,1.52822107,110440.0,110430.0,0.82882071]
[1748352564299,1.52822107,110440.0,110430.0,0.64781891]
[1748352564703,1.02574107,110440.0,110430.0,0.64781891]
[1748352564899,1.52790107,110440.0,110430.0,0.82882071]
[1748352565601,1.52790107,110440.0,110430.0,0.64781891]
[1748352565900,0.33888647,110440.0,110430.0,1.18962071]
[1748352566203,0.23888647,110440.0,110430.0,1.00861891]
[1748352566594,0.23888647,110440.0,110430.0,1.18962071]
[1748352566793,0.7129454,110440.0,110430.0,1.18962071]
[1748352566992,0.7129454,110440.0,110430.0,1.18962028]
[1748352568201,0.7127854,110440.0,110430.0,1.18962028]
[1748352568506,0.7127854,110440.0,110430.0,1.01440807]
[1748352568699,1.0127854,110440.0,110430.0,1.22962028]
[1748352568900,1.2437854,110440.0,110430.0,1.22962028]
[1748352569106,1.0337854,110440.0,110430.0,1.22962028]
[1748352569600,1.2437854,110440.0,110430.0,0.46221848]
[1748352569806,1.6075854,110440.0,110430.0,0.46121848]
[1748352570102,0.8747854,110440.0,110430.0,0.46121848]
[1748352570294,0.00312,110440.0,110430.0,1.23242018]
[1748352570699,0.003,110440.0,110430.0,1.23242018]
[1748352570898,0.50448,110440.0,110430.0,1.23242018]
[1748352571107,0.6855853,110440.0,110430.0,1.05141848]
[1748352571297,1.3045853,110440.0,110430.0,0.69061848]
[1748352571492,1.2725853,110440.0,110430.0,0.57371848]
[1748352571794,1.6525853,110440.0,110430.0,0.48005671]
[1748352572105,1.6525853,110440.0,110430.0,0.46873823]
[1748352572106,1.2725853,110440.0,110430.0,0.46873823]
[1748352572407,0.9807853,110440.0,110430.0,0.4632194]
[1748352572601,0.9107853,110440.0,110430.0,0.4622194]
[1748352572807,1.0004253,110440.0,110430.0,1.0060211]
[1748352572995,1.0005453,110440.0,110430.0,1.1181211]
[1748352573198,1.0005053,110440.0,110430.0,1.1181211]
[1748352573908,0.9103853,110440.0,110430.0,1.1181211]
[1748352574206,0.9125053,110440.0,110430.0,1.1171211]
[1748352574404,0.9125053,110440.0,110430.0,1.1151211]
[1748352574405,0.00212,110440.0,110430.0,1.1151211]
[1748352574605,0.00212,110440.0,110430.0,1.12163993]
[1748352574606,0.5042,110440.0,110430.0,1.12163993]
[1748352574901,0.003,110440.0,110430.0,1.12163993]
[1748352575107,0.504,110440.0,110430.0,1.13142249]
[1748352575494,0.50112,110440.0,110430.0,1.13142249]
[1748352575697,0.50112,110440.0,110430.0,1.13242249]
[1748352575903,0.501,110440.0,110430.0,1.13242249]
[1748352576107,0.00012,110440.0,110430.0,1.13242249]
[1748352576511,0.15795636,110480.0,110450.0,0.045241]
[1748352576701,0.15795636,110480.0,110460.0,0.7979669]
[1748352576702,0.1104,110470.0,110460.0,0.7979669]
[1748352577005,0.54820767,110480.0,110470.0,0.2974362]
[1748352577307,1.22884767,110480.0,110470.0,0.7679362]
[1748352577507,1.22896767,110480.0,110470.0,0.7679362]
[1748352577704,1.22896767,110480.0,110470.0,0.5983194]
[1748352577906,1.23496767,110480.0,110470.0,0.5983194]
[1748352578103,1.23496767,110480.0,110470.0,0.7792556]
[1748352578309,1.24084767,110480.0,110470.0,0.7792556]
[1748352578511,1.23884767,110480.0,110470.0,0.7802556]
[1748352578711,1.41884767,110480.0,110470.0,0.5993194]
[1748352579012,1.41784767,110480.0,110470.0,0.6003194]
[1748352579312,0.84720767,110480.0,110470.0,0.4838194]
[1748352579610,1.36051805,110480.0,110470.0,1.0245556]
[1748352579810,1.36051805,110480.0,110470.0,1.1360556]
[1748352580511,1.16851805,110480.0,110470.0,1.1350556]
[1748352580706,0.33092,110480.0,110470.0,1.1237362]
[1748352580905,0.00612,110480.0,110470.0,1.1237362]
[1748352581209,0.28224927,110500.0,110490.0,0.1809034]
[1748352581411,0.28224927,110500.0,110490.0,1.2325034]
[1748352581712,0.78248927,110500.0,110490.0,1.3440034]
[1748352582012,0.78248927,110500.0,110490.0,1.4716178]
[1748352582709,0.78236927,110500.0,110490.0,1.4716178]
[1748352582900,0.78236927,110500.0,110490.0,1.4603034]
[1748352583101,0.60443967,110500.0,110490.0,1.4603034]
[1748352583308,0.28536677,110500.0,110490.0,1.47161527]
[1748352583609,0.7840471,110500.0,110490.0,1.4623034]
[1748352583810,0.7850471,110500.0,110490.0,0.7407034]
[1748352584108,0.9350471,110500.0,110490.0,0.5598]
[1748352584414,1.0201471,110500.0,110490.0,0.7407034]
[1748352584608,1.1101471,110500.0,110490.0,0.7407034]
[1748352585109,1.1101471,110500.0,110490.0,0.5598]
[1748352585415,1.0201471,110500.0,110490.0,0.5598]
[1748352585615,1.4437471,110500.0,110490.0,0.5598]
[1748352585909,0.9437071,110500.0,110490.0,0.5598]
[1748352586101,1.4433871,110500.0,110490.0,0.5598]
[1748352586302,1.8041871,110500.0,110490.0,0.5598]
[1748352586801,1.81774579,110500.0,110490.0,0.4483]
[1748352587103,1.81774579,110500.0,110490.0,0.2683]
[1748352589811,1.45694579,110500.0,110490.0,0.2683]
[1748352590210,1.45694579,110500.0,110490.0,0.2992034]
[1748352590211,1.16181869,110500.0,110490.0,0.2992034]
[1748352590411,1.34270579,110500.0,110490.0,0.7678034]
[1748352590613,1.10768579,110500.0,110490.0,1.1286034]
[1748352590804,0.79756579,110500.0,110490.0,1.1286034]
[1748352591005,1.10578579,110500.0,110490.0,1.1286034]
[1748352591811,1.02578579,110500.0,110490.0,1.1286034]
[1748352592520,0.2850071,110500.0,110490.0,1.1286034]
[1748352592826,0.2848871,110500.0,110490.0,1.1286034]
[1748352593119,0.7838871,110500.0,110490.0,1.1286034]
[1748352593313,0.7838071,110500.0,110490.0,1.1286034]
[1748352593715,0.7837671,110500.0,110490.0,1.1286034]
[1748352594217,0.2850071,110500.0,110490.0,1.1286034]
[1748352594522,0.7836871,110500.0,110490.0,1.1286034]
[1748352595513,0.8036871,110500.0,110490.0,1.1286034]
[1748352595904,0.7836871,110500.0,110490.0,1.1286034]
[1748352596107,0.8136871,110500.0,110490.0,1.1286034]